bitfinex/quotes_SOLUSD_20251103
["timestamp","ask_amount","ask_price","bid_price","bid_amount"]
[1762181130066,4.87695982,175.56,175.5,5.69800569]
[1762181130269,5.53695982,175.54,175.5,5.69800569]
[1762181130468,5.53695982,175.54,175.45,6.48936362]
[1762181130469,4.87695982,175.53,175.45,6.48936362]
[1762181130653,4.87695982,175.51,175.46,17.13159923]
[1762181130861,5.53695982,175.52,175.46,17.13159923]
[1762181131061,5.53695982,175.52,175.46,17.82159923]
[1762181131274,4.87695982,175.49,175.46,17.13159923]
[1762181131463,4.87695982,175.47,175.46,17.13159923]
[1762181132053,5.53695982,175.47,175.45,0.1]
[1762181132248,5.53695982,175.46,175.45,0.1]
[1762181132570,0.66,175.46,175.45,0.1]
[1762181133070,0.14216157,175.49,175.45,0.1]
[1762181133071,5.01912139,175.49,175.45,0.1]
[1762181133266,0.72,175.46,175.45,0.1]
[1762181134175,0.72,175.48,175.45,0.1]
[1762181134476,0.72,175.48,175.45,5.79962952]
[1762181135052,0.72,175.48,175.45,0.1]
[1762181135277,4.87695982,175.46,175.45,0.1]
[1762181135656,5.59695982,175.46,175.45,0.1]
[1762181135858,5.73912139,175.46,175.45,0.1]
[1762181136366,8.11870086,175.46,175.45,0.1]
[1762181136760,17.90752855,175.46,175.45,0.1]
[1762181136961,21.66199701,175.46,175.45,0.1]
[1762181137159,14.40545772,175.46,175.45,0.1]
[1762181137368,21.66199701,175.46,175.45,0.1]
[1762181137768,42.25399701,175.46,175.45,0.1]
[1762181137958,92.25399701,175.46,175.45,0.1]
[1762181138462,71.66199701,175.46,175.45,0.1]
[1762181139372,14.40545772,175.46,175.45,0.1]
[1762181139571,21.66199701,175.46,175.45,0.1]
[1762181140479,4.47446846,175.46,175.45,0.1]
[1762181140680,0.72,175.46,175.45,0.1]
[1762181140991,0.72,175.48,175.45,5.79950501]
[1762181141171,10.99409888,175.5,175.45,5.79950501]
[1762181141375,0.72,175.49,175.45,5.79950501]
[1762181141780,7.97653929,175.49,175.45,0.1]
[1762181142183,3.73763424,175.5,175.45,0.1]
[1762181142184,7.97653929,175.48,175.45,0.1]
[1762181142381,7.39870086,175.47,175.45,0.1]
[1762181142574,7.25653929,175.46,175.45,0.1]
[1762181142776,10.9935724,175.48,175.45,0.1]
[1762181142990,0.72,175.47,175.45,0.1]
[1762181144568,7.97653929,175.47,175.45,0.1]
[1762181144973,0.72,175.46,175.45,0.1]
[1762181145369,3.88021444,175.49,175.45,0.1]
[1762181145370,3.73805287,175.49,175.45,0.1]
[1762181145598,0.72,175.49,175.45,5.79959819]
[1762181145779,8.11870086,175.52,175.45,20.728672]
[1762181146093,0.72,175.51,175.45,20.728672]
[1762181146278,4.45614175,175.53,175.46,0.68]
[1762181146478,0.72,175.53,175.46,0.68]
[1762181146886,0.72,175.53,175.46,7.93653929]
[1762181147570,0.72,175.53,175.47,0.68]
[1762181147771,3.73614175,175.56,175.48,19.9452929]
[1762181147968,3.73614175,175.58,175.49,0.68]
[1762181148175,0.72,175.57,175.49,0.68]
[1762181149783,0.72,175.57,175.49,21.272]
[1762181149986,3.73759366,175.57,175.5,9.78882769]
[1762181150187,4.45759366,175.61,175.5,10.46882769]
[1762181150382,0.72,175.59,175.51,0.68]
[1762181151178,7.97653929,175.59,175.51,0.68]
[1762181151389,7.25653929,175.57,175.51,0.68]
[1762181151703,7.97653929,175.58,175.51,0.68]
[1762181151892,0.72,175.58,175.52,5.69735642]
[1762181152189,3.73759366,175.59,175.52,19.94074748]
[1762181152492,11.13729269,175.59,175.52,20.62074748]
[1762181153003,11.85729269,175.59,175.52,20.62074748]
[1762181153187,11.13729269,175.59,175.52,0.68]
[1762181153391,0.72,175.58,175.52,0.68]
[1762181153585,7.97653929,175.58,175.51,5.69760799]
[1762181153785,0.72,175.58,175.51,20.62181059]
[1762181153985,11.13729269,175.59,175.52,0.68]
[1762181153986,3.73859183,175.59,175.52,0.68]
[1762181154305,11.71513112,175.61,175.52,0.68]
[1762181154507,7.97653929,175.6,175.52,0.68]
[1762181154802,3.73859183,175.61,175.52,0.68]
[1762181155100,10.99513112,175.61,175.52,0.68]
[1762181155599,7.97653929,175.6,175.52,0.68]
[1762181156103,7.97653929,175.6,175.53,19.93961145]
[1762181156707,7.97653929,175.6,175.53,20.61961145]
[1762181157210,0.72,175.6,175.53,19.93961145]
[1762181157389,3.73859183,175.61,175.54,0.31]
[1762181157704,3.73859183,175.63,175.54,0.31]
[1762181157903,3.73859183,175.63,175.55,7.25653929]
[1762181158085,3.73859183,175.63,175.56,5.69605832]
[1762181158086,4.45859183,175.63,175.56,5.69605832]
[1762181158286,4.45859183,175.63,175.56,6.23605832]
[1762181158492,4.45859183,175.63,175.56,5.69605832]
[1762181158696,0.14216157,175.56,175.47,6.37881649]
[1762181158892,7.25653929,175.53,175.47,6.37881649]
[1762181159094,0.72,175.58,175.48,0.68]
[1762181159610,0.72,175.58,175.5,20.592]
[1762181159806,0.72,175.58,175.5,21.272]
[1762181160191,0.72,175.58,175.51,19.94188364]
[1762181160506,0.72,175.58,175.51,5.69768104]
[1762181160507,7.25653929,175.56,175.51,5.69768104]
[1762181160709,7.25653929,175.55,175.51,6.37768104]
[1762181160907,7.25653929,175.56,175.52,0.68]
[1762181161213,3.74312397,175.58,175.52,0.68]
[1762181161503,3.74312397,175.59,175.52,0.68]
[1762181161704,0.72,175.6,175.52,0.68]
[1762181161907,3.74961519,175.61,175.52,0.68]
[1762181162111,7.25653929,175.58,175.52,0.68]
[1762181162282,7.25653929,175.57,175.52,6.37711496]
[1762181162479,7.25653929,175.56,175.52,6.36711496]
[1762181162678,11.00655051,175.57,175.52,5.69711496]
[1762181162884,7.25653929,175.57,175.53,0.67]
[1762181163308,7.25653929,175.54,175.49,0.67]
[1762181163503,7.25653929,175.54,175.49,20.61415635]
[1762181163708,7.25653929,175.52,175.49,6.36833038]
[1762181164187,7.25653929,175.53,175.49,6.36833038]
[1762181165208,7.25653929,175.51,175.47,5.69897988]
[1762181165418,7.25653929,175.51,175.45,0.1]
[1762181165419,7.25653929,175.48,175.45,0.1]
[1762181165606,7.90653929,175.47,175.45,5.79961385]
[1762181165782,3.75129937,175.48,175.45,5.79961385]
[1762181165982,7.25653929,175.51,175.45,20.04868766]
[1762181166194,7.25653929,175.49,175.45,0.1]
[1762181166388,7.25653929,175.46,175.45,0.1]
[1762181166588,11.01329266,175.46,175.45,0.1]
[1762181167087,11.66329266,175.46,175.45,0.1]
[1762181167803,11.80545423,175.46,175.45,0.1]
[1762181168010,21.59428192,175.46,175.45,0.1]
[1762181168309,21.59428192,175.46,175.42,0.1]
[1762181168310,26.32045832,175.46,175.42,0.1]
[1762181168505,9.25984293,175.45,175.42,0.1]
[1762181168714,11.01329266,175.44,175.42,0.1]
[1762181168909,3.75675337,175.43,175.42,0.1]
[1762181170213,3.75675337,175.43,175.42,5.80060426]
[1762181170702,3.75675337,175.43,175.42,0.1]
[1762181171785,3.75675337,175.43,175.42,5.80060426]
[1762181172396,3.75675337,175.43,175.42,6.47060426]
[1762181172598,7.25653929,175.48,175.42,6.47060426]
[1762181172599,0.65,175.47,175.42,5.80060426]
[1762181172797,3.77376751,175.46,175.42,0.1]
[1762181173001,3.77376751,175.45,175.42,5.8004116]
[1762181173199,7.90653929,175.47,175.42,5.8004116]
[1762181173200,3.77376751,175.44,175.42,5.8004116]
[1762181173408,0.65,175.46,175.42,20.05192226]
[1762181173624,3.77570823,175.45,175.42,20.05192226]
[1762181173796,3.77570823,175.44,175.42,20.05192226]
[1762181173992,0.65,175.46,175.42,20.05192226]
[1762181174195,3.77587913,175.45,175.42,20.05192226]
[1762181174516,3.77587913,175.44,175.43,0.67]
[1762181174823,3.77587913,175.44,175.42,20.05192226]
[1762181174996,11.96746728,175.48,175.43,0.67]
[1762181175197,3.77674242,175.47,175.43,0.67]
[1762181175499,3.77674242,175.46,175.43,0.67]
[1762181175698,3.77746332,175.45,175.43,0.67]
[1762181175899,7.25653929,175.48,175.43,0.67]
[1762181176113,3.77765592,175.47,175.43,0.67]
[1762181176314,3.77765592,175.46,175.44,5.6999544]
[1762181176520,0.65,175.51,175.44,48.4496124]
[1762181176817,3.77820552,175.5,175.46,9.78882769]
[1762181177000,7.90653929,175.58,175.47,0.14216157]
[1762181177207,7.90653929,175.58,175.48,30.38082769]
[1762181177515,4.71092799,175.59,175.49,0.67]
[1762181177516,0.65,175.57,175.49,0.67]
[1762181177712,20.592,175.58,175.49,0.67]
[1762181177914,7.90653929,175.59,175.5,9.78882769]
[1762181178206,0.65,175.59,175.5,9.78882769]
[1762181178517,0.65,175.59,175.49,0.67]
[1762181178518,7.25653929,175.58,175.52,19.94074748]
[1762181178719,7.25653929,175.58,175.52,5.69735642]
[1762181178901,7.25653929,175.58,175.51,0.67]
[1762181178902,7.25653929,175.55,175.51,6.36764805]
[1762181179103,7.25653929,175.55,175.43,17.13062098]
[1762181179104,7.25653929,175.52,175.48,0.67]
[1762181179324,7.25653929,175.51,175.48,0.67]
[1762181179616,5.36092799,175.56,175.48,0.67]
[1762181179617,7.25653929,175.53,175.48,0.67]
[1762181179796,7.25653929,175.52,175.48,0.67]
[1762181180311,12.61746728,175.58,175.49,19.94415635]
[1762181180493,0.65,175.6,175.49,19.94415635]
[1762181180819,7.90653929,175.6,175.5,10.45882769]
[1762181181319,0.65,175.59,175.5,9.78882769]
[1762181181619,7.25653929,175.58,175.51,0.67]
[1762181182117,7.25653929,175.59,175.51,0.67]
[1762181182319,7.25653929,175.6,175.52,9.78882769]
[1762181182495,7.90653929,175.61,175.53,19.93961145]
[1762181182902,7.90653929,175.61,175.54,0.67]
[1762181183106,7.25653929,175.6,175.54,0.67]
[1762181183320,20.592,175.63,175.54,0.67]
[1762181183497,7.90653929,175.65,175.55,30.38082769]
[1762181183698,0.65,175.64,175.56,0.67]
[1762181184004,23.56989196,175.67,175.57,9.78882769]
[1762181184005,0.65,175.66,175.57,9.78882769]
[1762181184393,7.25653929,175.69,175.6,19.93166287]
[1762181184621,0.65,175.68,175.61,9.78882769]
[1762181184915,0.65,175.68,175.61,31.05082769]
[1762181185114,0.65,175.68,175.61,30.38082769]
[1762181185327,0.65,175.68,175.62,0.67]
[1762181186112,7.25653929,175.68,175.62,0.67]
[1762181186503,7.25653929,175.69,175.63,5.69378807]
[1762181186706,7.25653929,175.68,175.63,5.69378807]
[1762181187019,7.25653929,175.68,175.63,6.41378807]
[1762181187227,7.25653929,175.68,175.64,0.72]
[1762181187526,7.25653929,175.66,175.6,19.93162634]
[1762181187699,7.25653929,175.65,175.6,6.41472429]
[1762181188027,7.25653929,175.65,175.61,0.72]
[1762181188233,7.25653929,175.7,175.61,10.50882769]
[1762181188413,7.25653929,175.7,175.6,40.52362634]
[1762181188414,7.25653929,175.71,175.63,19.92825826]
[1762181188599,0.72,175.7,175.63,20.64825826]
[1762181189017,0.72,175.7,175.63,6.41378807]
[1762181189423,7.97653929,175.7,175.63,6.41378807]
[1762181189611,7.97653929,175.7,175.64,0.72]
[1762181189807,11.02792039,175.71,175.64,0.72]
[1762181190429,7.25653929,175.7,175.65,5.69313976]
[1762181190600,3.7713811,175.71,175.65,19.92598917]
[1762181190800,7.25653929,175.73,175.66,0.72]
[1762181191041,0.72,175.72,175.66,0.72]
[1762181191807,7.97653929,175.72,175.66,0.72]
[1762181192630,3.77003822,175.73,175.67,5.6924916]
[1762181192809,21.272,175.74,175.67,5.6924916]
[1762181193121,21.272,175.74,175.67,20.6137206]
[1762181193328,28.52853929,175.74,175.67,20.6137206]
[1762181193707,28.52853929,175.74,175.67,6.3824916]
[1762181194013,7.25653929,175.69,175.65,6.3829816]
[1762181194221,7.25653929,175.69,175.66,0.69]
[1762181194608,7.25653929,175.69,175.66,6.38274087]
[1762181194811,7.25653929,175.7,175.66,6.38274087]
[1762181195634,7.25653929,175.68,175.63,0.69]
[1762181195944,7.25653929,175.66,175.63,0.69]
[1762181196433,4.87909178,175.67,175.63,0.69]
[1762181196636,4.87909178,175.7,175.64,5.6934639]
[1762181196843,4.87909178,175.7,175.64,20.61712365]
[1762181197027,4.87909178,175.7,175.65,0.04]
[1762181197328,4.87909178,175.71,175.65,0.04]
[1762181197708,21.272,175.72,175.65,0.04]
[1762181197909,4.87909178,175.71,175.65,0.04]
[1762181198914,4.87909178,175.72,175.65,0.04]
[1762181199124,5.55909178,175.72,175.65,0.04]
[1762181199320,4.87909178,175.68,175.62,20.61939299]
[1762181199639,4.87909178,175.67,175.63,0.69]
[1762181199936,4.87909178,175.68,175.63,0.69]
[1762181200142,4.43767585,175.71,175.63,0.69]
[1762181200143,21.272,175.73,175.64,9.78882769]
[1762181200439,25.47109178,175.74,175.64,9.78882769]
[1762181200647,25.47109178,175.74,175.66,29.71368251]
[1762181200648,4.87909178,175.74,175.66,29.71368251]
[1762181200951,5.55909178,175.74,175.66,29.71368251]
[1762181201248,5.55909178,175.74,175.67,0.69]
[1762181201541,5.55909178,175.75,175.67,0.69]
[1762181201751,5.55909178,175.74,175.67,0.69]
[1762181202047,4.87909178,175.72,175.67,0.69]
[1762181202341,0.68,175.73,175.66,19.92485482]
[1762181202547,4.87909178,175.7,175.66,20.61485482]
[1762181202738,4.87909178,175.71,175.67,0.69]
[1762181203636,5.55909178,175.73,175.67,0.69]
[1762181203824,4.87909178,175.73,175.67,0.69]
[1762181204026,26.15109178,175.75,175.67,0.69]
[1762181204429,0.68,175.75,175.68,9.78882769]
[1762181204636,0.68,175.78,175.7,9.78882769]
[1762181204948,4.87909178,175.79,175.7,9.78882769]
[1762181205133,0.68,175.79,175.71,0.69]
[1762181205341,5.07909178,175.8,175.72,9.78882769]
[1762181205649,5.75909178,175.8,175.72,9.78882769]
[1762181205831,0.68,175.79,175.72,10.47882769]
[1762181206230,0.2,175.8,175.73,0.69]
[1762181206833,0.2,175.8,175.74,19.91578467]
[1762181207251,0.2,175.8,175.75,9.78882769]
[1762181207433,0.2,175.8,175.76,0.69]
[1762181208832,0.2,175.8,175.77,5.689253]
[1762181209168,0.2,175.8,175.74,0.69]
[1762181209169,5.75909178,175.8,175.74,0.69]
[1762181209459,4.87909178,175.78,175.73,0.27]
[1762181209639,0.88,175.8,175.72,5.6907912]
[1762181209834,4.87909178,175.78,175.74,0.69]
[1762181210039,5.07909178,175.8,175.74,0.69]
[1762181210253,0.2,175.8,175.74,0.69]
[1762181210840,0.2,175.8,175.75,19.91465148]
[1762181211354,0.2,175.8,175.76,0.69]
[1762181211946,4.87909178,175.79,175.76,0.69]
[1762181212145,4.87909178,175.78,175.74,19.91572235]
[1762181212633,4.87909178,175.79,175.75,0.69]
[1762181212857,4.87909178,175.79,175.76,5.68957669]
[1762181213045,0.2,175.8,175.76,19.91351842]
[1762181213242,0.2,175.8,175.77,0.69]
[1762181214053,0.2,175.8,175.78,9.78882769]
[1762181214256,0.2,175.8,175.79,20.592]
[1762181214667,1e-08,175.8,175.79,31.21298926]
[1762181214840,3.94642252,175.88,175.8,10.62098926]
[1762181215043,3.94642252,175.88,175.81,19.90785506]
[1762181215044,0.2,175.88,175.81,19.90785506]
[1762181215352,0.2,175.88,175.81,20.59785506]
[1762181215553,3.94642252,175.88,175.82,0.69]
[1762181215758,0.2,175.88,175.82,0.69]
[1762181215948,4.87909178,175.86,175.79,0.69]
[1762181216147,4.87909178,175.86,175.8,0.69]
[1762181216339,4.87909178,175.86,175.8,14.91070534]
[1762181216765,4.87909178,175.86,175.81,0.69]
[1762181216968,4.87909178,175.85,175.78,30.38082769]
[1762181217180,4.87909178,175.84,175.79,20.60012002]
[1762181217344,8.6255143,175.86,175.79,20.60012002]
[1762181217550,8.6255143,175.87,175.8,0.69]
[1762181217766,3.74642252,175.86,175.8,0.69]
[1762181218276,3.74642252,175.85,175.8,0.69]
[1762181218443,4.87909178,175.86,175.8,0.69]
[1762181218645,0.2,175.88,175.8,0.69]
[1762181218845,3.75563065,175.87,175.8,0.69]
[1762181219045,3.75563065,175.86,175.81,19.90785506]
[1762181219346,3.75563065,175.85,175.81,19.90785506]
[1762181219549,3.75705026,175.84,175.81,19.90785506]
[1762181219754,4.87909178,175.85,175.81,6.37795859]
[1762181220052,3.76147457,175.84,175.82,0.69]
[1762181220250,4.87909178,175.87,175.82,0.69]
[1762181220438,4.87909178,175.83,175.75,14.91475106]
[1762181220642,4.87909178,175.79,175.76,0.69]
[1762181220844,4.71092799,175.85,175.74,5.69014242]
[1762181220845,4.87909178,175.77,175.74,5.69014242]
[1762181221043,4.87909178,175.77,175.74,0.69]
[1762181221258,4.71092799,175.82,175.75,0.69]
[1762181221473,3.76616791,175.81,175.75,0.69]
[1762181221654,8.64525969,175.8,175.75,0.69]
[1762181221850,3.76616791,175.79,175.75,0.69]
[1762181222049,3.76616791,175.78,175.75,0.69]
[1762181222264,4.87909178,175.81,175.72,20.592]
[1762181222468,4.87909178,175.77,175.71,0.69]
[1762181222648,3.76808452,175.76,175.72,0.69]
[1762181222850,4.87909178,175.78,175.72,0.69]
[1762181223045,8.64649177,175.77,175.72,0.69]
[1762181223246,3.76739999,175.76,175.72,20.6079923]
[1762181223448,3.76739999,175.75,175.72,5.6908127]
[1762181223764,4.87909178,175.77,175.72,20.6079923]
[1762181223985,3.7686803,175.76,175.73,0.69]
[1762181224171,3.7686803,175.75,175.73,0.69]
[1762181224373,5.55909178,175.77,175.72,19.9179923]
[1762181224559,3.77100547,175.76,175.72,20.6079923]
[1762181224873,4.71092799,175.82,175.76,9.93098926]
[1762181225084,3.77162491,175.81,175.78,9.93098926]
[1762181225273,4.91092799,175.88,175.81,20.592]
[1762181225445,0.2,175.88,175.81,20.592]
[1762181225648,0.88,175.88,175.81,21.282]
[1762181225848,0.68,175.87,175.81,21.282]
[1762181226151,0.2,175.88,175.82,10.62098926]
[1762181226370,0.2,175.88,175.85,20.592]
[1762181226570,0.2,175.88,175.86,9.78882769]
[1762181226759,0.2,175.88,175.86,10.47882769]
[1762181226958,0.2,175.88,175.87,6.37601808]
[1762181227454,0.2,175.88,175.87,5.68601808]
[1762181228885,1e-08,175.91,175.9,20.592]
[1762181229050,1e-08,175.91,175.9,26.50704832]
[1762181229249,1e-08,175.91,175.9,36.29587601]
[1762181229566,0.2,175.92,175.9,26.50704832]
[1762181229567,1e-08,175.92,175.9,26.50704832]
[1762181229761,1e-08,175.92,175.91,0.69]
[1762181230182,1e-08,175.92,175.9,26.27704832]
[1762181230482,1e-08,175.92,175.9,26.96704832]
[1762181230662,1e-08,175.92,175.9,26.27704832]
[1762181230862,1e-08,175.92,175.9,5.68504832]
[1762181231065,1e-08,175.92,175.89,19.89828527]
[1762181231482,1e-08,175.92,175.89,5.68537153]
[1762181231656,0.68000001,175.92,175.89,5.68537153]
[1762181232070,1e-08,175.92,175.89,5.68537153]
[1762181232279,1e-08,175.92,175.89,20.58880037]
[1762181232460,1e-08,175.92,175.89,19.89880037]
[1762181232662,1e-08,175.92,175.89,20.58880037]
[1762181233180,1e-08,175.92,175.91,30.38082769]
[1762181233353,1e-08,175.92,175.91,30.52298926]
[1762181234186,1e-08,175.92,175.91,30.38082769]
[1762181234385,1e-08,175.92,175.91,30.52298926]
[1762181234764,1e-08,175.92,175.91,31.21298926]
[1762181235159,1e-08,175.92,175.91,36.8977144]
[1762181236060,1e-08,175.92,175.91,26.27672514]
[1762181236282,1e-08,175.92,175.88,14.90415497]
[1762181236492,4.87909179,175.92,175.82,0.69]
[1762181236659,4.87909179,175.92,175.84,4.87909178]
[1762181236978,4.87909179,175.92,175.82,0.69]
[1762181236979,1e-08,175.92,175.85,30.38082769]
[1762181237170,1e-08,175.92,175.86,19.90219491]
[1762181237374,1e-08,175.92,175.86,20.59219491]
[1762181237681,1e-08,175.92,175.88,20.592]
[1762181237860,1e-08,175.92,175.89,9.78882769]
[1762181238187,1e-08,175.92,175.91,20.592]
[1762181238571,1e-08,175.92,175.91,31.21298926]
[1762181239295,1e-08,175.92,175.91,36.8977144]
[1762181239785,0.68,176.03,175.96,9.78882769]
[1762181239986,0.68,176.05,175.99,20.592]
[1762181240189,5.55909178,176.05,175.99,20.592]
[1762181240564,0.68,176.04,175.99,20.592]
[1762181240770,0.1,176.06,176.0,0.69]
[1762181241170,0.1,176.06,176.01,19.88523378]
[1762181241388,0.78,176.06,176.01,19.88523378]
[1762181243275,0.1,176.06,176.02,0.69]
[1762181243568,0.1,176.1,176.04,20.592]
[1762181243782,0.1,176.1,176.05,9.78882769]
[1762181244079,0.1,176.1,176.06,0.14216157]
[1762181244269,0.1,176.1,176.09,9.78882769]
[1762181244471,1e-08,176.1,176.09,9.93098926]
[1762181244674,1e-08,176.1,176.09,10.62098926]
[1762181245087,0.2,176.17,176.12,20.592]
[1762181245290,0.2,176.17,176.13,19.87168568]
[1762181245495,0.88,176.17,176.13,19.87168568]
[1762181246296,0.2,176.17,176.13,19.87168568]
[1762181246688,0.9,176.17,176.12,20.592]
[1762181246891,0.7,176.16,176.12,20.592]
[1762181247081,0.2,176.17,176.12,20.592]
[1762181247082,1e-08,176.17,176.16,30.52298926]
[1762181247394,1e-08,176.17,176.16,36.19964684]
[1762181247610,1e-08,176.17,176.16,36.86964684]
[1762181248612,1e-08,176.17,176.16,26.26865758]
[1762181248776,1e-08,176.17,176.14,20.592]
[1762181249083,1e-08,176.17,176.12,9.78882769]
[1762181249280,1e-08,176.17,176.14,9.93098926]
[1762181249712,1e-08,176.17,176.16,20.592]
[1762181249875,1e-08,176.17,176.16,30.52298926]
[1762181250077,1e-08,176.17,176.16,31.19298926]
[1762181250604,1e-08,176.17,176.16,20.592]
[1762181250920,1e-08,176.17,176.16,30.38082769]
[1762181251209,1e-08,176.17,176.16,31.19298926]
[1762181251393,1e-08,176.17,176.16,36.86964684]
[1762181253814,1e-08,176.17,176.16,5.67665758]
[1762181254112,1e-08,176.17,176.16,26.26865758]
[1762181254618,1e-08,176.17,176.15,5.67681493]
[1762181255292,1e-08,176.17,176.14,30.38082769]
[1762181255492,1e-08,176.17,176.14,36.73811557]
[1762181255793,1e-08,176.17,176.14,50.93137093]
[1762181256911,1e-08,176.17,176.14,50.25137093]
[1762181257111,1e-08,176.17,176.14,20.592]
[1762181257302,1e-08,176.17,176.12,20.592]
[1762181257303,0.69,176.16,176.12,20.592]
[1762181257506,1e-08,176.17,176.12,20.592]
[1762181257692,1e-08,176.17,176.11,19.87394241]
[1762181257693,1e-08,176.17,176.16,0.14216157]
[1762181258092,1e-08,176.17,176.16,0.82216157]
[1762181258300,1e-08,176.17,176.16,10.61098926]
[1762181258689,0.69,176.26,176.2,20.592]
[1762181259006,0.69,176.26,176.24,7.18668247]
[1762181259415,0.69,176.26,176.25,5.67375886]
[1762181259916,0.69,176.26,176.25,12.86044133]
[1762181260114,0.69,176.29,176.25,27.04483849]
[1762181260293,0.69,176.29,176.26,7.18668247]
[1762181260696,0.69,176.29,176.27,7.18668247]
[1762181261007,0.69,176.29,176.25,19.85815602]
[1762181261311,0.2,176.3,176.29,5.67247149]
[1762181261493,0.69,176.29,176.27,12.85979757]
[1762181262208,0.69,176.29,176.23,5.67440276]
[1762181262209,7.87668247,176.29,176.23,5.67440276]
[1762181262411,7.87668247,176.29,176.24,7.18668247]
[1762181262720,0.69,176.28,176.24,7.18668247]
[1762181262892,7.18668247,176.27,176.22,20.592]
[1762181263088,7.18668247,176.27,176.11,11.98]
[1762181263089,7.18668247,176.24,176.15,6.35692017]
[1762181263326,0.69,176.24,176.2,5.67536889]
[1762181263492,0.69,176.26,176.21,7.18668247]
[1762181263689,7.18668247,176.25,176.2,12.86205136]
[1762181263913,0.69,176.24,176.2,12.86205136]
[1762181264113,7.18668247,176.25,176.2,5.67536889]
[1762181264292,0.69,176.24,176.2,5.67536889]
[1762181264809,0.69,176.24,176.18,9.78882769]
[1762181265119,0.69,176.24,176.19,12.86232391]
[1762181265317,0.69,176.24,176.19,27.05155144]
[1762181265519,50.2,176.3,176.19,27.05155144]
[1762181265520,7.87668247,176.27,176.22,7.18668247]
[1762181265819,7.87668247,176.27,176.22,27.77868247]
[1762181265820,0.69,176.26,176.22,27.77868247]
[1762181266017,0.69,176.26,176.22,20.592]
[1762181266796,7.18668247,176.23,176.18,7.18668247]
[1762181266994,0.69,176.26,176.15,7.18668247]
[1762181266995,7.18668247,176.2,176.15,7.18668247]
[1762181267224,7.18668247,176.19,176.16,20.592]
[1762181267395,7.87668247,176.19,176.17,5.67633535]
[1762181267595,0.14216157,176.27,176.17,5.67633535]
[1762181267596,7.18668247,176.21,176.17,5.67633535]
[1762181267814,0.69,176.22,176.2,20.592]
[1762181269098,0.69,176.22,176.14,14.87304335]
[1762181269099,7.18668247,176.21,176.19,20.592]
[1762181269322,7.87668247,176.22,176.19,20.592]
[1762181269516,0.69,176.21,176.19,20.592]
[1762181269726,0.69,176.21,176.15,27.77868247]
[1762181269727,7.87668247,176.21,176.15,27.77868247]
[1762181269901,7.87668247,176.21,176.19,20.592]
[1762181270224,0.69,176.21,176.19,20.592]
[1762181270525,3.73733424,176.26,176.18,7.18668247]
[1762181270526,7.18668247,176.24,176.18,7.18668247]
[1762181270820,0.69,176.2,176.18,27.77868247]
[1762181271209,0.69,176.2,176.18,20.592]
[1762181271729,7.18668247,176.22,176.18,20.592]
[1762181272016,3.74082289,176.25,176.18,20.592]
[1762181272017,7.18668247,176.23,176.18,26.26795694]
[1762181272530,7.87668247,176.22,176.18,5.67595694]
[1762181272901,7.87668247,176.22,176.17,14.19079769]
[1762181272902,7.18668247,176.2,176.17,20.592]
[1762181273213,7.18668247,176.18,176.14,26.26924492]
[1762181274222,0.69,176.18,176.14,26.26924492]
[1762181274531,0.69,176.18,176.15,7.18668247]
[1762181274702,0.69,176.22,176.17,7.18668247]
[1762181274907,0.69,176.22,176.17,27.77868247]
[1762181275309,7.87668247,176.22,176.17,27.77868247]
[1762181275514,7.18668247,176.2,176.17,26.26826412]
[1762181275722,7.18668247,176.2,176.16,5.67656635]
[1762181275926,0.69,176.19,176.16,5.67656635]
[1762181276237,0.69,176.19,176.14,20.592]
[1762181276238,7.18668247,176.18,176.14,20.592]
[1762181276401,7.18668247,176.18,176.14,26.26912411]
[1762181276601,0.69,176.18,176.14,26.26912411]
[1762181277233,7.87668247,176.18,176.14,26.26912411]
[1762181277526,7.18668247,176.16,176.14,20.592]